bitfinex/quotes_ETHUSD_20241215
["timestamp","ask_amount","ask_price","bid_price","bid_amount"]
[1734278401013,1.85323799,3894.4,3893.1,0.819]
[1734278401853,2.56827,3893.7,3893.1,0.819]
[1734278402671,2.56833,3893.6,3893.1,0.819]
[1734278404985,2.56818,3893.9,3893.1,0.819]
[1734278405182,2.5682,3893.8,3893.1,0.819]
[1734278405387,2.56825,3893.7,3893.1,0.819]
[1734278405789,2.56836,3893.6,3893.1,0.819]
[1734278405995,0.7795,3894.4,3893.1,0.819]
[1734278405996,2.56785,3894.3,3893.1,0.819]
[1734278406300,2.56829,3893.7,3893.1,0.819]
[1734278406594,2.5682,3893.8,3893.1,0.819]
[1734278406794,2.56826,3893.7,3893.1,0.819]
[1734278408878,2.56826,3893.7,3892.4,0.98251581]
[1734278409302,3.0,3893.9,3892.4,0.98251581]
[1734278409488,2.56814,3893.9,3892.6,2.56896]
[1734278409690,3.0,3894.0,3892.8,2.56881]
[1734278410217,2.5676,3894.7,3893.4,0.98251581]
[1734278411015,2.5676,3894.7,3893.4,1.48761326]
[1734278411882,2.5676,3894.7,3893.5,0.8206]
[1734278412877,0.57568267,3895.1,3893.5,0.8206]
[1734278413099,2.56766,3894.6,3893.5,0.8206]
[1734278413303,2.56766,3894.6,3893.6,0.98571158]
[1734278414920,2.56749,3894.9,3893.6,0.98571158]
[1734278415211,2.56749,3894.9,3893.7,0.8054]
[1734278415573,2.56753,3894.8,3893.7,0.8054]
[1734278416610,2.56723,3895.3,3893.7,0.8054]
[1734278416611,3.64288657,3895.1,3893.9,0.8054]
[1734278416968,2.56734,3895.1,3894.1,0.8054]
[1734278417702,2.56739,3895.0,3894.1,0.8054]
[1734278418256,2.56746,3894.9,3894.1,0.8054]
[1734278419740,0.02568267,3895.1,3894.1,0.8054]
[1734278419741,2.59303267,3895.1,3894.1,0.8054]
[1734278419901,2.56735,3895.1,3894.1,0.8054]
[1734278421864,2.56735,3895.1,3894.2,0.8054]
[1734278425419,1.074443,3895.4,3894.2,0.8054]
[1734278425631,2.56745,3895.0,3894.2,0.8054]
[1734278426640,1.074443,3895.5,3894.2,0.8054]
[1734278426811,0.02568267,3895.4,3894.2,0.8054]
[1734278427014,0.02568267,3895.4,3894.4,0.8054]
[1734278427846,2.5672,3895.3,3894.4,0.8054]
[1734278428490,2.56707,3895.5,3894.4,0.8054]
[1734278428668,1.074443,3896.1,3895.1,0.8054]
[1734278428845,2.56674,3896.0,3895.1,0.8054]
[1734278429647,0.02568267,3896.0,3895.1,0.8054]
[1734278429808,2.56715,3895.4,3895.1,0.8054]
[1734278430008,2.59259267,3895.8,3895.1,0.8054]
[1734278430420,2.5675,3894.9,3894.3,0.8054]
[1734278430713,0.02568267,3895.6,3894.3,0.8054]
[1734278430915,2.56734,3895.1,3894.3,0.8054]
[1734278432030,2.56742,3895.0,3894.3,0.8054]
[1734278432919,0.02568267,3895.6,3894.3,0.8054]
[1734278433152,2.56747,3894.9,3894.3,0.8054]
[1734278433972,2.56713,3895.4,3894.3,0.8054]
[1734278433973,2.56742,3895.0,3894.3,0.8054]
[1734278435615,2.56726,3895.3,3894.3,0.8054]
[1734278435945,2.56726,3895.3,3894.4,0.7865]
[1734278437251,2.56693,3895.8,3894.5,0.7865]
[1734278437424,2.56695,3895.7,3894.5,0.7865]
[1734278437964,2.56695,3895.7,3894.5,3.3542]
[1734278438151,2.56695,3895.7,3894.6,0.7865]
[1734278438351,2.56695,3895.7,3894.7,0.43367158]
[1734278438578,2.56695,3895.7,3894.8,0.7865]
[1734278439843,2.5666,3896.2,3894.8,0.7865]
[1734278440038,2.56685,3895.9,3894.8,0.7865]
[1734278441579,0.02568267,3895.8,3894.8,0.7865]
[1734278441766,0.828,3896.1,3894.8,0.95874849]
[1734278441968,2.5673,3895.2,3894.8,0.7865]
[1734278442172,2.56697,3895.7,3894.8,0.7865]
[1734278442560,2.56713,3895.4,3894.8,0.7865]
[1734278442883,2.56718,3895.4,3894.8,0.7865]
[1734278443256,2.56699,3895.6,3894.8,0.7865]
[1734278443460,2.56718,3895.4,3894.8,0.7865]
[1734278443786,2.5672,3895.3,3894.8,0.7865]
[1734278446789,2.56706,3895.5,3894.8,0.7865]
[1734278451386,1.902443,3896.1,3894.8,0.7865]
[1734278451589,2.5668,3895.9,3894.9,0.7865]
[1734278451791,2.567,3895.6,3894.9,0.7865]
[1734278454568,2.56686,3895.9,3894.9,0.7865]
[1734278455256,1.074443,3896.0,3894.9,0.7865]
[1734278455456,4.1783145,3896.2,3894.9,0.7865]
[1734278455457,2.56688,3895.8,3894.9,0.7865]
[1734278456657,2.567,3895.6,3894.9,0.7865]
[1734278456859,2.56739,3895.0,3894.9,0.7865]
[1734278457096,2.56746,3894.9,3894.2,0.7563]
[1734278457356,2.56713,3895.4,3894.3,0.88636477]
[1734278457490,2.56713,3895.4,3894.4,0.7563]
[1734278457803,2.56735,3895.1,3894.4,0.7563]
[1734278458161,2.5674,3895.0,3894.4,0.7563]
[1734278458367,3.641573,3895.4,3894.4,0.7563]
[1734278458562,2.56746,3894.9,3894.4,0.7563]
[1734278458761,2.56733,3895.1,3894.4,0.7563]
[1734278458963,1.074443,3895.3,3894.4,0.7563]
[1734278459363,2.56748,3894.9,3894.4,0.7563]
[1734278460088,3.641763,3895.2,3894.4,0.7563]
[1734278460344,2.56732,3895.2,3894.4,0.7563]
[1734278460643,2.56736,3895.1,3894.4,0.7563]
[1734278462931,2.56737,3895.1,3894.4,0.7563]
[1734278463139,2.56739,3895.0,3894.4,0.7563]
[1734278463445,2.56796,3894.2,3894.0,0.7563]
[1734278463593,2.56798,3894.1,3894.0,0.7563]
[1734278463801,2.56808,3894.0,3893.5,0.7563]
[1734278466396,0.7626,3894.7,3893.5,0.7563]
[1734278466397,0.02568267,3894.4,3893.5,0.7563]
[1734278466851,2.56792,3894.2,3893.5,0.7563]
[1734278467218,2.5682,3893.8,3893.5,0.7563]
[1734278470839,2.413943,3894.6,3893.5,0.7563]
[1734278471131,2.56792,3894.2,3893.5,0.7563]
[1734278471438,0.7895,3894.9,3893.5,0.7563]
[1734278471650,2.568,3894.1,3893.5,0.7563]
[1734278472327,2.5678,3894.4,3893.5,0.7563]
[1734278472628,2.56794,3894.2,3893.5,0.7563]
[1734278476741,2.56797,3894.2,3893.5,0.7563]
[1734278477913,2.56799,3894.1,3893.5,0.7563]
[1734278478234,2.56828,3893.7,3893.5,0.7563]
[1734278478826,2.56828,3893.7,3892.7,1.07285307]
[1734278478827,2.56839,3893.5,3892.7,0.789]
[1734278478987,2.56845,3893.4,3892.8,1.60252944]
[1734278479190,2.56845,3893.4,3892.8,0.71699817]
[1734278479504,2.59379267,3893.9,3892.8,0.71699817]
[1734278479505,2.56818,3893.8,3892.8,0.71699817]
[1734278479695,0.02568267,3893.7,3892.7,0.789]
[1734278480098,2.56818,3893.8,3892.7,0.789]
[1734278480533,0.82648267,3894.1,3892.7,0.789]
[1734278480534,0.8008,3894.1,3892.7,0.789]
[1734278480730,2.56833,3893.6,3892.7,0.789]
[1734278480893,2.56833,3893.6,3892.9,0.789]
[1734278482125,0.8008,3894.1,3892.9,0.789]
[1734278482361,2.56846,3893.4,3892.9,0.789]
[1734278485157,2.56857,3893.3,3892.9,0.789]
[1734278487863,2.56864,3893.2,3892.9,0.789]
[1734278488255,2.56871,3893.1,3892.9,0.789]
[1734278489175,2.56838,3893.5,3892.9,0.789]
[1734278489376,2.56871,3893.0,3892.9,0.789]
[1734278489580,2.56871,3893.0,3892.3,0.50552086]
[1734278489581,2.56871,3893.0,3892.4,0.789]
[1734278489740,2.56871,3893.0,3892.4,0.91845209]
[1734278489949,3.36912,3893.6,3892.4,0.91845209]
[1734278490141,2.56871,3893.0,3892.4,0.91845209]
[1734278491483,0.85148267,3892.9,3891.7,0.8091]
[1734278491708,0.8258,3892.9,3891.7,0.8091]
[1734278492740,2.56911,3892.4,3891.7,0.8091]
[1734278492946,2.56918,3892.3,3891.7,0.8091]
[1734278493179,2.56944,3891.9,3891.7,0.8091]
[1734278494455,0.7794,3892.3,3891.7,0.8091]
[1734278494456,2.56928,3892.2,3891.7,0.8091]
[1734278495768,2.56939,3892.0,3891.7,0.8091]
[1734278495972,2.56939,3892.0,3890.8,0.7544]
[1734278496204,2.56939,3892.0,3891.0,0.7544]
[1734278497306,3.34862,3892.3,3891.0,0.7544]
[1734278497604,0.7794,3892.3,3891.0,0.7544]
[1734278498399,2.56941,3892.0,3891.0,0.7544]
[1734278500070,0.02568267,3891.9,3891.0,0.7544]
[1734278500279,2.56941,3892.0,3891.2,0.7544]
[1734278500572,0.7794,3892.3,3891.2,0.7544]
[1734278501309,2.56931,3892.1,3891.2,0.7544]
[1734278501609,2.56945,3891.9,3891.2,0.7544]
[1734278501810,2.56964,3891.6,3891.2,0.7544]
[1734278502014,2.56978,3891.4,3890.7,0.7544]
[1734278502193,0.7794,3891.6,3890.7,0.7544]
[1734278502194,2.56991,3891.2,3890.7,0.7544]
[1734278502376,0.7794,3891.3,3890.2,0.0008]
[1734278502605,2.5717,3888.5,3887.1,0.51289824]
[1734278502937,4.3294,3888.7,3886.9,0.96]
[1734278502938,2.57267,3887.0,3886.9,0.96]
[1734278503120,3.12267,3887.0,3886.9,0.96]
[1734278503324,2.57309,3886.4,3886.2,0.1627067]
[1734278504235,2.57304,3886.5,3886.2,0.1627067]
[1734278504539,2.57306,3886.5,3886.2,0.1127067]
[1734278504723,0.02568267,3886.4,3886.2,0.1127067]
[1734278505093,0.02568267,3886.9,3886.2,0.1127067]
[1734278505544,0.55,3886.8,3886.2,0.1127067]
[1734278505758,2.5727,3887.0,3886.2,0.1127067]
[1734278505905,3.55,3887.3,3886.2,0.1127067]
[1734278506103,3.57568267,3887.3,3886.3,0.7544]
[1734278506298,2.59817267,3887.3,3886.3,0.7544]
[1734278506816,3.02568267,3887.3,3886.3,0.7544]
[1734278507022,0.02568267,3887.3,3886.3,0.7544]
[1734278508056,2.59817267,3887.3,3886.3,0.7544]
[1734278508568,0.55,3887.6,3886.3,0.7544]
[1734278508569,2.57231,3887.6,3886.3,0.7544]
[1734278509939,2.57244,3887.4,3886.3,0.7544]
[1734278510193,0.55,3887.6,3886.3,0.7544]
[1734278510316,2.57256,3887.2,3886.2,0.1127067]
[1734278512342,0.7794,3887.7,3886.2,0.1127067]
[1734278512754,3.12231,3887.6,3886.2,0.1127067]
[1734278513323,2.57238,3887.5,3886.2,0.1127067]
[1734278514642,3.7794,3887.7,3886.2,0.1127067]
[1734278515040,3.35162,3887.7,3886.2,0.1127067]
[1734278515241,0.7794,3887.7,3886.2,0.1127067]
[1734278515451,2.57231,3887.6,3886.2,0.1127067]
[1734278516224,2.57238,3887.5,3886.2,0.1127067]
[1734278518425,2.57244,3887.4,3886.2,0.1127067]
[1734278520230,0.55,3887.6,3886.2,0.1127067]
[1734278520428,2.57254,3887.2,3886.2,0.1127067]
[1734278521366,2.57239,3887.5,3886.2,0.1127067]
[1734278521576,0.7794,3887.7,3886.2,0.1127067]
[1734278521732,0.55,3887.8,3886.3,0.8082]
[1734278521933,0.55,3888.0,3886.3,1.15760867]
[1734278522133,2.57224,3887.7,3886.3,4.15760867]
[1734278522669,2.57224,3887.7,3886.3,1.15760867]
[1734278523968,3.24851337,3888.0,3886.3,1.15760867]
[1734278524170,75.68482293,3884.9,3884.8,12.79]
[1734278524370,47.69620552,3884.9,3884.8,28.72819168]
[1734278524578,47.08000552,3884.9,3884.8,20.79410868]
[1734278524874,45.79297552,3884.9,3884.8,20.79410868]
[1734278525433,41.93188552,3884.9,3884.8,20.79410868]
[1734278525889,40.64485552,3884.9,3884.8,20.79410868]
[1734278526068,39.35782552,3884.9,3884.8,20.79410868]
[1734278526270,35.49673552,3884.9,3884.8,18.84953055]
[1734278526575,35.36478175,3884.9,3884.8,18.84953055]
[1734278527005,28.04303477,3884.9,3884.8,18.84953055]
[1734278527156,27.28485361,3884.9,3884.8,18.84953055]
[1734278527345,27.21253748,3884.9,3884.8,18.84953055]
[1734278527836,23.30983574,3884.9,3884.8,18.84953055]
[1734278528041,17.63753048,3884.9,3884.8,18.84953055]
[1734278528435,17.47883048,3884.9,3884.8,18.84953055]
[1734278528841,16.80553149,3884.9,3884.8,18.84953055]
[1734278529040,15.30720149,3884.9,3884.8,18.84953055]
[1734278529265,14.02017149,3884.9,3884.8,18.84953055]
[1734278529582,9.93156936,3884.9,3884.8,18.84953055]
[1734278529750,9.39366936,3884.9,3884.8,18.84953055]
[1734278530072,8.10663936,3884.9,3884.8,18.84953055]
[1734278530289,2.95851936,3884.9,3884.8,18.84953055]
[1734278531482,0.24999038,3886.9,3886.0,2.57331]
[1734278531668,0.24999038,3886.9,3886.1,0.257331]
[1734278531857,0.24999038,3886.9,3885.4,0.55]
[1734278532364,0.24999038,3886.9,3885.7,2.5735]
[1734278532684,0.24999038,3886.9,3885.8,2.57346]
[1734278533044,0.24999038,3886.9,3885.4,0.55]
[1734278533308,0.24999038,3886.9,3885.8,2.57341]
[1734278533497,0.24999038,3886.9,3885.9,0.257341]
[1734278533692,0.24999038,3886.9,3885.9,2.830731]
[1734278538310,0.24999038,3886.9,3885.9,0.257341]
[1734278540866,0.24999038,3886.7,3885.4,3.0]
[1734278541366,0.24999038,3886.7,3885.6,3.0]
[1734278542278,0.24999038,3886.5,3885.5,0.51932749]
[1734278542481,0.82,3886.2,3885.0,2.57398]
[1734278542790,0.82,3886.2,3885.1,0.257398]
[1734278542962,0.82,3886.2,3885.1,0.76622883]
[1734278543163,0.82,3886.2,3885.1,0.257398]
[1734278543818,0.24999038,3886.0,3885.1,0.257398]
[1734278544969,0.24999038,3886.5,3885.4,2.57373]
[1734278545339,0.24999038,3886.3,3885.4,2.57373]
[1734278545504,0.24999038,3886.5,3885.4,2.57373]
[1734278546415,0.24999038,3886.5,3885.1,3.0]
[1734278546577,0.24999038,3886.5,3885.3,3.0]
[1734278546773,0.24999038,3886.5,3885.4,0.557384]
[1734278547991,0.24999038,3886.5,3885.0,5.57398]
[1734278548320,0.24999038,3886.0,3884.9,0.52427094]
[1734278548519,0.24999038,3886.0,3884.9,1.05714232]
[1734278548520,0.82,3885.9,3884.9,1.05714232]
[1734278548818,0.82,3885.9,3885.0,3.0]
[1734278549176,0.82,3885.9,3885.0,5.57397]
[1734278549430,0.82,3885.9,3885.1,0.71454542]
[1734278549724,0.82,3885.9,3885.2,3.0]
[1734278550016,0.82,3885.9,3885.1,0.71454542]
[1734278551224,0.82,3886.3,3885.5,2.57366]
[1734278551557,0.82,3886.3,3885.6,2.830936]
[1734278551832,0.82,3886.3,3885.6,0.257366]
[1734278552125,0.82,3886.3,3885.4,3.0]
[1734278552334,0.82,3886.3,3885.4,4.05714232]
[1734278553178,0.82,3886.3,3885.4,1.05714232]
[1734278553406,0.82,3886.3,3885.3,4.05714232]
[1734278554426,61.06765648,3885.1,3884.9,2.11741195]
[1734278554715,61.06765648,3885.1,3885.0,0.55]
[1734278556129,61.06765648,3885.1,3885.0,2.66741195]
[1734278556334,61.06765648,3885.1,3885.0,4.69979842]
[1734278556744,61.06765648,3885.1,3885.0,1.57579842]
[1734278557041,61.06765648,3885.1,3884.6,2.11741195]
[1734278557250,61.06765648,3885.1,3884.7,1.68030282]
[1734278557696,61.06765648,3885.1,3884.8,1.54518399]
[1734278558208,61.06765648,3885.1,3884.8,2.57413]
[1734278558447,61.06765648,3885.1,3884.8,0.55]
[1734278558622,61.06765648,3885.1,3885.0,3.124]
[1734278558944,61.06765648,3885.1,3885.0,4.02567067]
[1734278559161,61.06765648,3885.1,3885.0,5.57063147]
[1734278559353,61.06765648,3885.1,3885.0,1.45167067]
[1734278560213,61.06765648,3885.1,3885.0,0.90167067]
[1734278560427,61.06765648,3885.1,3884.8,3.0]
[1734278561131,61.06765648,3885.1,3884.7,1.68030282]
[1734278561767,61.06765648,3885.1,3884.8,0.55]
[1734278561942,61.06765648,3885.1,3885.0,0.55]
[1734278562266,61.06765648,3885.1,3885.0,2.09451637]
[1734278562968,61.06765648,3885.1,3885.0,2.7731152]
[1734278563479,61.06765648,3885.1,3885.0,4.38963349]
[1734278567053,61.06765648,3885.1,3885.0,4.3894503]
[1734278567778,61.06765648,3885.1,3885.0,7.3894503]
[1734278567938,61.06765648,3885.1,3885.0,5.7731152]
[1734278568876,61.06765648,3885.1,3885.0,4.22859883]
[1734278569962,61.06765648,3885.1,3885.0,5.77294165]
[1734278571481,61.06765648,3885.1,3885.0,7.38941441]
[1734278571994,61.06765648,3885.1,3885.0,4.22859883]
[1734278573765,61.06765648,3885.1,3885.0,1.22859883]
[1734278575484,61.06765648,3885.1,3885.0,2.30652026]
[1734278575673,61.06765648,3885.1,3885.0,0.67859883]
[1734278575870,61.06765648,3885.1,3884.9,1.07792143]
[1734278576272,61.06765648,3885.1,3884.8,1.07792143]
[1734278576468,61.06765648,3885.1,3884.6,2.14318263]
[1734278576469,61.06765648,3885.1,3884.6,1.6046313]
[1734278576670,61.06765648,3885.1,3884.6,1.07792143]
[1734278577070,0.802,3885.0,3884.4,1.07792143]
[1734278577266,0.802,3884.8,3883.8,1.07792143]
[1734278577463,0.24999038,3884.9,3883.8,0.51660249]
[1734278577464,0.802,3884.7,3883.8,0.51660249]
[1734278577695,0.802,3884.7,3883.8,1.59452392]
[1734278578274,0.802,3884.7,3883.8,0.51660249]
[1734278578480,0.802,3884.7,3883.8,1.59452392]
[1734278579016,0.802,3884.7,3883.9,4.58670035]
[1734278579388,0.802,3884.7,3883.9,1.58670035]
[1734278580117,0.802,3884.7,3884.1,0.55]
[1734278580333,0.802,3884.7,3884.1,3.55]
[1734278580467,0.802,3884.7,3884.1,4.62792143]
[1734278580680,0.802,3884.7,3884.2,0.94432814]
[1734278582934,0.802,3884.7,3884.3,3.0]
[1734278583746,0.802,3884.7,3884.2,0.94432814]
[1734278585094,0.802,3884.7,3884.3,3.0]
[1734278585543,61.06765648,3885.1,3884.6,3.0]
[1734278585697,0.802,3885.0,3884.7,0.557426]
[1734278586070,61.06765648,3885.1,3884.9,4.73623684]
[1734278586277,61.06765648,3885.1,3885.0,4.62792143]
[1734278587033,61.06765648,3885.1,3885.0,3.55]
[1734278587241,61.06765648,3885.1,3885.0,4.62667028]
[1734278587540,61.06765648,3885.1,3885.0,4.91919259]
[1734278588323,61.06765648,3885.1,3885.0,8.09619054]
[1734278588874,61.06765648,3885.1,3885.0,4.91919259]
[1734278589847,61.06765648,3885.1,3885.0,8.09622383]
[1734278590717,61.06765648,3885.1,3885.0,8.63487104]
[1734278590875,61.06765648,3885.1,3885.0,6.47975107]
[1734278592727,0.8012,3886.1,3885.0,6.47975107]
[1734278592895,0.8012,3886.1,3885.5,4.07677925]
[1734278593597,0.8012,3886.1,3885.5,3.0]
[1734278593919,0.8012,3886.1,3885.5,1.07677925]
[1734278594237,0.8012,3886.1,3885.5,0.55]
[1734278594583,0.8012,3886.1,3885.4,0.55]
[1734278594778,0.8012,3886.1,3885.5,0.72006393]
[1734278596343,0.8012,3886.1,3885.4,0.55]
[1734278596344,0.8012,3886.1,3885.3,0.50331036]
[1734278598301,0.8318,3886.0,3885.3,0.50331036]
[1734278598603,0.8318,3886.0,3885.1,0.55]
[1734278599013,0.8318,3885.8,3884.9,4.07677925]
[1734278599321,0.8318,3885.6,3884.8,0.51639229]
[1734278599529,0.8318,3885.6,3884.8,1.32383657]
[1734278600222,0.8318,3885.6,3884.8,0.80744428]
[1734278600603,0.8318,3885.6,3884.8,4.88422353]
[1734278602024,0.7086055,3885.6,3884.9,0.55]
[1734278602423,0.7086055,3885.6,3884.9,3.55]
[1734278602589,0.7086055,3885.6,3885.0,4.08029301]
[1734278602789,0.7086055,3885.6,3885.0,1.08029301]
[1734278605524,0.8318,3886.0,3885.3,2.71218684]
[1734278605833,0.8318,3886.0,3885.7,3.55]
[1734278606198,0.24999038,3886.5,3886.0,3.0]
[1734278606199,0.8318,3886.4,3886.0,3.0]
[1734278607454,0.8318,3886.4,3886.0,3.612339]
[1734278608303,0.8318,3886.4,3886.0,6.185649]
[1734278609619,0.8318,3886.4,3886.0,6.6953847]
[1734278609818,0.8318,3886.4,3886.1,0.55]
[1734278610601,0.24999038,3886.8,3886.3,3.55]
[1734278610602,0.8318,3886.8,3886.3,3.55]
[1734278610722,0.8318,3887.1,3886.8,3.0]
[1734278611038,0.24999038,3887.3,3886.9,0.55]
[1734278611241,0.8318,3887.4,3886.9,0.55]
[1734278611408,0.8318,3887.4,3887.0,3.0]
[1734278611745,0.8318,3887.8,3887.5,3.0]
[1734278612742,1.08179038,3888.1,3887.6,0.55]
[1734278612948,0.8318,3888.1,3887.6,3.55]
[1734278613345,0.8318,3888.1,3887.5,2.57231]
[1734278613346,0.8318,3888.1,3887.5,0.55]
[1734278613532,0.793,3888.4,3887.5,0.55]
[1734278613732,0.793,3888.4,3887.7,0.55]
[1734278613932,0.24999038,3888.3,3887.8,2.57214]
[1734278614132,0.24999038,3888.3,3887.9,3.0]
[1734278614345,0.24999038,3888.3,3887.8,3.0]
[1734278615143,0.793,3888.4,3887.8,3.0]
[1734278615718,0.793,3888.4,3887.9,0.55]
[1734278616054,1.04299038,3888.4,3887.9,0.55]
[1734278616253,1.04299038,3888.4,3887.8,3.55]
[1734278616738,1.04299038,3888.4,3887.8,4.26902203]
[1734278616944,0.24999038,3888.1,3887.8,4.26902203]
[1734278617147,0.24999038,3888.3,3887.8,4.26902203]
[1734278617464,0.793,3888.4,3888.0,3.55]
[1734278617987,0.793,3888.4,3888.0,0.55]
[1734278618142,0.793,3888.4,3887.9,0.55]
[1734278618764,0.793,3888.4,3887.9,4.45034389]
[1734278619773,0.793,3888.4,3887.9,1.45034389]
[1734278619929,0.793,3889.1,3888.5,3.0]
[1734278620280,1.04299038,3889.1,3888.6,0.02571247]
[1734278620486,1.04299038,3889.1,3888.6,0.55]
[1734278620684,0.793,3889.1,3888.4,0.55]
[1734278620904,0.793,3889.1,3888.7,0.55]
[1734278621236,0.793,3889.5,3888.9,0.55]
[1734278621768,0.793,3889.5,3888.9,3.55]
[1734278622081,0.24999038,3889.4,3888.9,3.55]
[1734278623737,0.2468924,3889.4,3888.9,3.55]
[1734278624577,0.793,3889.5,3888.9,3.55]
[1734278624759,0.2468924,3889.4,3888.9,3.55]
[1734278626262,0.2468924,3889.4,3888.9,0.55]
[1734278626772,0.793,3889.5,3888.9,0.55]
[1734278626977,0.2468924,3889.4,3888.9,0.55]
[1734278629766,0.2468924,3889.4,3888.9,3.55]
[1734278630276,0.793,3889.5,3888.9,3.55]
[1734278630448,0.2468924,3889.4,3888.9,3.55]
[1734278630865,0.793,3889.5,3888.9,3.55]
[1734278631177,0.2468924,3889.3,3888.9,3.55]
[1734278631405,0.2468924,3889.3,3888.9,0.55]
[1734278631540,0.2468924,3889.3,3888.7,0.55]
[1734278631763,0.2468924,3889.3,3888.7,1.41724823]
[1734278634582,0.793,3889.5,3888.7,1.41724823]
[1734278634754,0.2468924,3889.3,3888.7,1.41724823]
[1734278639940,0.2468924,3889.3,3889.2,0.98491932]
[1734278640766,1.0398924,3889.5,3889.2,0.98491932]
[1734278642369,0.2468924,3889.4,3889.2,0.98491932]
[1734278642900,0.2468924,3889.4,3888.5,3.52400286]
[1734278643118,2.57116,3889.3,3888.5,0.52400286]
[1734278643305,0.2468924,3889.1,3888.7,0.98491932]
[1734278643671,0.8068,3889.0,3888.7,0.98491932]
[1734278645413,0.2468924,3889.1,3888.7,0.98491932]
[1734278646138,0.2468924,3889.1,3888.5,0.64790286]
[1734278647162,0.8068,3889.0,3888.5,0.52400286]
[1734278647754,0.8068,3889.0,3887.7,3.55]
[1734278647755,0.2468924,3888.6,3887.7,3.55]
[1734278648042,2.93384224,3889.0,3887.7,3.55]
[1734278648043,0.2468924,3888.3,3887.7,0.55]
[1734278648805,0.2468924,3888.3,3887.9,0.50267406]
[1734278649217,0.2468924,3888.3,3887.7,3.55]
[1734278649609,0.2468924,3888.3,3887.9,0.55]
[1734278651208,1.0536924,3888.5,3888.0,2.57199]
[1734278651932,0.2468924,3888.6,3888.3,2.57179]
[1734278652273,0.8068,3888.8,3888.3,2.57179]
[1734278652913,0.8068,3888.8,3888.2,2.28138895]
[1734278653118,0.8068,3888.8,3888.4,2.57175]
[1734278653655,0.7773,3889.2,3888.7,2.57154]
[1734278655254,0.7773,3889.2,3888.9,3.0]
[1734278655431,0.2468924,3889.3,3888.9,3.0]
[1734278657156,0.2468924,3889.3,3888.9,5.57142]
[1734278660220,0.2468924,3889.3,3889.0,2.57135]
[1734278660561,0.2468924,3889.3,3889.1,3.0]
[1734278661871,0.2468924,3889.3,3888.8,0.50753406]
[1734278662172,1.07495401,3890.2,3888.5,3.0]
[1734278662173,0.7773,3888.9,3888.5,3.0]
[1734278662701,0.7773,3889.6,3888.8,2.15748895]
[1734278662981,0.7773,3889.6,3889.4,2.57106]
[1734278663144,0.2468924,3889.8,3889.5,1.26223196]
[1734278663330,0.2468924,3889.8,3889.6,1.26222441]
[1734278663531,0.2468924,3889.8,3889.4,1.07677925]
[1734278663768,0.2468924,3889.8,3889.5,1.26222332]
[1734278663922,0.2468924,3889.8,3889.6,1.26222332]
[1734278664255,0.2468924,3889.8,3889.4,3.64784925]
[1734278664464,0.2468924,3889.6,3889.5,1.26215387]
[1734278666750,0.2468924,3889.8,3889.5,1.26203932]
[1734278666925,0.2468924,3889.8,3889.4,2.57108]
[1734278666926,0.2468924,3889.8,3889.4,3.64785925]
[1734278667130,0.2468924,3889.8,3889.5,1.26201712]
[1734278667350,0.2468924,3889.8,3889.4,2.57108]
[1734278667561,0.2468924,3889.8,3889.5,1.26187452]
[1734278667873,0.2468924,3889.8,3889.5,2.57096]
[1734278668031,0.2468924,3889.8,3889.7,0.55]
[1734278668349,0.2468924,3889.8,3889.6,3.12091]
[1734278668783,0.2468924,3889.8,3889.7,1.81163642]
[1734278669303,0.2468924,3889.8,3889.7,0.55]
[1734278671501,0.2468924,3889.8,3889.3,3.64788925]
[1734278671693,0.2468924,3889.8,3889.4,4.81126707]
[1734278672011,0.2468924,3889.8,3889.4,3.55]
[1734278672779,0.2468924,3889.8,3889.2,1.58787658]
[1734278672780,0.8039,3889.7,3889.2,1.58787658]
[1734278672980,0.8039,3889.7,3889.0,1.07677925]
[1734278673186,0.2468924,3889.4,3889.1,1.26130075]
[1734278673383,3.64518401,3890.7,3888.7,4.07677925]
[1734278673384,0.2468924,3889.2,3888.7,4.07677925]
[1734278673576,0.2468924,3889.2,3888.8,1.26134179]
[1734278673792,0.7715,3889.3,3888.5,6.64844925]
[1734278673793,0.2468924,3889.1,3888.5,6.64844925]
[1734278673966,0.2468924,3889.1,3888.6,1.26144483]
[1734278674151,0.2468924,3889.1,3888.5,3.64844925]
[1734278674337,0.2468924,3889.1,3888.6,1.26151184]
[1734278674542,0.2468924,3889.1,3888.6,0.55]
[1734278675714,0.2468924,3889.1,3888.5,1.60228339]
[1734278675910,0.2468924,3888.7,3888.3,3.0]
[1734278676200,0.2468924,3888.7,3888.4,1.26152031]
[1734278676347,0.2468924,3888.7,3888.3,3.0]
[1734278677076,0.2468924,3888.7,3888.4,0.55]
[1734278678778,0.2468924,3888.7,3888.6,3.0]
[1734278679085,0.2468924,3888.7,3888.6,5.40736819]
[1734278679489,0.2468924,3888.9,3888.6,5.40736819]
[1734278679690,0.7715,3889.1,3888.6,4.14598431]
[1734278679691,0.2468924,3888.7,3888.6,4.14598431]
[1734278679856,0.2468924,3888.7,3888.6,5.40728267]
[1734278680066,0.2468924,3888.7,3888.6,1.14598431]
[1734278680388,0.2468924,3888.7,3888.4,0.55]
[1734278680389,0.2468924,3888.7,3888.4,4.62677925]
[1734278680697,0.2468924,3888.7,3888.5,4.26135851]
[1734278680904,0.2468924,3888.7,3888.5,3.0]
[1734278681119,0.2468924,3888.7,3888.3,4.07677925]
[1734278681259,0.2468924,3888.5,3888.2,1.59985435]
[1734278681461,0.2468924,3888.5,3888.2,0.5230751]
[1734278682607,0.2468924,3888.5,3888.1,0.55]
[1734278682784,0.2468924,3888.5,3888.0,0.55]
[1734278683094,0.2468924,3888.5,3888.1,4.26140777]
[1734278683264,0.2468924,3888.5,3888.0,0.55]
[1734278683464,0.2468924,3888.5,3888.0,3.55]
[1734278685166,0.2468924,3888.5,3888.1,0.52329931]